Cogmind - Beta 12 @@@ ROGUE MODE // 2024.01.21 @ 23:34:32 Player: puppuppit Result: Destroyed by H-55 Commando with Gauss Rifle Performance ------------- Evolutions (2) 1000 Regions Visited (6) 1200 Robots Destroyed (28) 140 Value Destroyed (765) 765 Prototype IDs (5) 100 Alien Tech Used (0) 0 Bonus (200) 200 TOTAL SCORE: 3405 Bonus ------- Entered Garrisons 200 Cogmind --------- Core Integrity 0/550 Matter 172/300 Energy 64/100 System Corruption 0% Temperature Cool (0) Movement Core (50) Location -8/Garrison Parts ------- > --- POWER (1) -------- (None) > --- PROPULSION (3) --- (None) > --- UTILITY (5) ------ (None) > --- WEAPON (2) ------- (None) > --- INVENTORY (5) ---- Small Storage Unit Medium Matter Pod (100) Peak State ------------ > --- POWER ------------ (None) > --- PROPULSION ------- Hover Unit Hover Unit > --- UTILITY ---------- Bomb Drone Bay > --- WEAPON ----------- Autogun Autogun > --- INVENTORY -------- Light Nuclear Core Hover Unit Small Storage Unit Medium Matter Pod Heavy EM Pulse Gun [Rating: 20] Favorites ----------- Power Light Nuclear Core Engine Ion Engine Power Core Light Nuclear Core Propulsion Hover Unit Wheel Wheel Hover Unit Hover Unit Utility Small Storage Unit Device Structural Scanner Storage Small Storage Unit Weapon Autogun Energy Gun Heavy EM Pulse Gun Ballistic Gun Autogun Ballistic Cannon Light Cannon Launcher Rocket Launcher Build | -11 -10 -10 -10 -9 -8 -8 ------- Run | Jun Mat Min Exi Min Mat Gar Slots Evolved 4 | . . . . . 4 . Power . | . . . . . . . Propulsion 1 | . . . . . 1 . Utility 3 | . . . . . 3 . Weapon . | . . . . . . . Parts Attached 34 | 6 13 7 . 1 5 2 Power 5 | 1 3 . . . 1 . Engine 3 | 1 2 . . . . . Core 2 | . 1 . . . 1 . Reactor . | . . . . . . . Propulsion 10 | 2 4 3 . . 1 . Treads . | . . . . . . . Leg . | . . . . . . . Wheel 3 | 2 1 . . . . . Hover 7 | . 3 3 . . 1 . Flight . | . . . . . . . Utility 5 | 1 2 2 . . . . Device 4 | . 2 2 . . . . Storage 1 | 1 . . . . . . Processor . | . . . . . . . Hackware . | . . . . . . . Protection . | . . . . . . . Artifact . | . . . . . . . Weapon 14 | 2 4 2 . 1 3 2 Energy Gun 4 | . 1 . . . 1 2 Energy Cannon . | . . . . . . . Ballistic Gun 7 | 2 2 2 . . 1 . Ballistic Cannon 1 | . 1 . . . . . Launcher 2 | . . . . 1 1 . Special Weapon . | . . . . . . . Impact Weapon . | . . . . . . . Slashing Weapon . | . . . . . . . Piercing Weapon . | . . . . . . . Special Melee Weapon . | . . . . . . . Unidentified Prototypes 1 | . . 1 . . . . Parts Lost 13 | . 1 3 . . 7 2 Power 1 | . . . . . 1 . Propulsion 6 | . 1 2 . . 3 . Utility . | . . . . . . . Weapon 6 | . . 1 . . 3 2 Highest Loss Streak 7 | . 1 3 . . 7 2 To Critical Strikes . | . . . . . . . Average Slot Usage (%) 69 | . 87 69 57 55 39 . Engine 1 | . 3 . . . . . Core 1 | . 3 . . . 5 . Wheel 4 | . 10 . . . . . Hover 21 | . 16 27 28 28 18 . Device 10 | . 10 14 14 8 . . Storage 7 | . 14 6 . . . . Energy Gun 3 | . 4 5 . . 5 . Ballistic Gun 12 | . 12 14 14 14 2 . Ballistic Cannon 3 | . 9 . . . . . Naked Turns 55 | . . . . . 19 36 Heaviest Build 16 | 14 16 12 11 11 12 3 Greatest Support 26 | 26 26 12 12 12 18 3 Greatest Overweight (x) 1 | . 1 1 . . . . Average Overweight (x) . | . . . . . . . Largest Inventory Capacity 8 | 8 8 8 5 5 5 5 Average Capacity 6 | 6 8 6 5 5 5 5 Most Carried 8 | 2 8 8 5 5 5 4 Average Carried 5 | . 6 6 5 5 4 3 Final Capacity 8 | 8 8 5 5 5 5 5 Final Carried 8 | 2 8 5 5 5 4 2 Class Distribution -------------------- 100% | Mutant Dominant Class ---------------- Mutant | -10/Materials Mutant | -10/Mines Mutant | -10/Exiles Mutant | -9/Mines Mutant | -8/Materials Mutant | -8/Garrison Resources | -11 -10 -10 -10 -9 -8 -8 ----------- Run | Jun Mat Min Exi Min Mat Gar Matter Collected 983 | 249 593 87 . 10 44 . Remotely . | . . . . . . . Salvage Created 838 | . 636 70 . . 132 . Parts 56 | . 40 2 . . 14 . Haulers Intercepted 1 | . 1 . . . . . Recyclers Shooed 3 | . 2 1 . . . . Parts Field Recycled . | . . . . . . . Retrieved Matter . | . . . . . . . Parts Self-Destructed . | . . . . . . . Prevented . | . . . . . . . Kills | -11 -10 -10 -10 -9 -8 -8 ------- Run | Jun Mat Min Exi Min Mat Gar Combat Hostiles Destroyed 14 | . 11 . . . 3 . Guns 7 | . 7 . . . . . Cannons 4 | . 4 . . . . . AOE 3 | . . . . . 3 . Classes Destroyed 9 | . 6 . . . 3 . Worker 1 | . . . . . 1 . Builder 4 | . 2 . . . 2 . Tunneler 2 | . 2 . . . . . Hauler 1 | . 1 . . . . . Recycler 2 | . 1 1 . . . . Operator 1 | . . . . . 1 . Watcher 3 | . 3 . . . . . Grunt 13 | . 11 . . . 2 . Sentry 1 | . . . . . 1 . Best Kill Streak 7 | . 6 1 . . 7 . Combat Bots Only 3 | . 3 . . . 2 . Max Kills in Single Turn 2 | . 1 1 . . 2 . Gunslinging . | . . . . . . . Exploded 2 | . . . . . 2 . Melee . | . . . . . . . Uniques/NPCs Destroyed . | . . . . . . . Combat | -11 -10 -10 -10 -9 -8 -8 -------- Run | Jun Mat Min Exi Min Mat Gar Damage Taken 1619 | . 152 256 . 135 768 308 Core 667 | . 22 51 . 30 353 211 Absorbed by Shields . | . . . . . . . Core Remaining (%) 79 | 100 . . . 58 . . Volleys Fired 71 | . 46 3 . . 20 2 Largest 2 | . 2 1 . . 2 2 Hottest 108 | . 68 23 . . 96 108 Shots Fired 122 | . 84 3 . . 31 4 Gun 75 | . 48 3 . . 20 4 Cannon 36 | . 36 . . . . . Launcher 11 | . . . . . 11 . Special . | . . . . . . . Kinetic 87 | . 77 3 . . 7 . Thermal 15 | . . . . . 13 2 Explosive 11 | . . . . . 11 . Electromagnetic 9 | . 7 . . . . 2 Robot Hit Streak 9 | . 8 9 . . 5 2 Robot Miss Streak 5 | . 5 1 . . 3 1 Penetration Max . | . . . . . . . Secondary Targets 1 | . 1 . . . . . Max Gunslinging Chain 1 | . 1 . . . . . Shots Hit Robots 69 | . 48 2 . . 16 3 Core Hits 45 | . 26 2 . . 17 . Critical Kills . | . . . . . . . Critical Parts Destroyed . | . . . . . . . Critical Strikes 5 | . 5 . . . . . Blast 4 | . 4 . . . . . Corrupt 1 | . 1 . . . . . Melee Attacks . | . . . . . . . Impact . | . . . . . . . Slashing . | . . . . . . . Piercing . | . . . . . . . Sneak Attacks . | . . . . . . . Combat Hostiles . | . . . . . . . Follow-up Attacks . | . . . . . . . Damage Inflicted 1972 | . 843 28 . . 1050 51 Guns 665 | . 399 28 . . 187 51 Cannons 363 | . 363 . . . . . Explosions 944 | . 81 . . . 863 . Melee . | . . . . . . . Ramming . | . . . . . . . Kinetic 774 | . 679 28 . . 67 . Thermal 235 | . 81 . . . 120 34 Explosive 863 | . . . . . 863 . Electromagnetic 100 | . 83 . . . . 17 Impact . | . . . . . . . Slashing . | . . . . . . . Piercing . | . . . . . . . Highest Corruption . | . . . . . . . Average Corruption . | . . . . . . . Corruption Purged . | . . . . . . . Corruption Blocked . | . . . . . . . Overload Shots . | . . . . . . . Overflow Damage 143 | . 61 . . . 82 . Projectiles . | . . . . . . . Explosions 143 | . 61 . . . 82 . Melee . | . . . . . . . Knockbacks 2 | . 2 . . . . . Impact . | . . . . . . . Kinetic 2 | . 2 . . . . . Secondary . | . . . . . . . Self-Inflicted Damage 29 | . . . . . 29 . Shots 1 | . . . . . 1 . Rammed . | . . . . . . . Targets Rammed . | . . . . . . . Kicked . | . . . . . . . Crushed . | . . . . . . . Highest Temperature 373 | . 39 2 . . 373 39 Average Temperature 101 | . 13 2 . . 182 22 Received Heat Transfer 561 | . 84 . . . 441 36 Siege Activations . | . . . . . . . Robots Corrupted . | . . . . . . . Combat Hostiles . | . . . . . . . Parts Fried . | . . . . . . . Impact Corruptions . | . . . . . . . Robots Melted . | . . . . . . . Combat Hostiles . | . . . . . . . Parts Melted . | . . . . . . . Heat Transferred 383 | . 50 . . . 259 74 Parts Sabotaged . | . . . . . . . Parts Stolen . | . . . . . . . Parts Stripped . | . . . . . . . Power Chain Reactions . | . . . . . . . Missiles Intercepted . | . . . . . . . Alert | -11 -10 -10 -10 -9 -8 -8 ------- Run | Jun Mat Min Exi Min Mat Gar Peak Influence 382 | . 382 87 . . 172 145 Initial 81 | . . 72 . . . 81 Average 95 | . 144 52 . . 89 109 Maximum Alert Level 1 | . 1 . . . . . Low Security (%) 94 | 100 88 100 . 100 100 100 Level 1 5 | . 11 . . . . . Level 2 . | . . . . . . . Level 3 . | . . . . . . . Level 4 . | . . . . . . . Level 5 . | . . . . . . . High Security . | . . . . . . . Max Security . | . . . . . . . Squads Dispatched 5 | . 1 . . . 4 . Investigation 4 | . 1 . . . 3 . Extermination . | . . . . . . . Reinforcement . | . . . . . . . Assault . | . . . . . . . Garrison 1 | . . . . . 1 . Intercept . | . . . . . . . Searches Triggered . | . . . . . . . Construction Impeded . | . . . . . . . Haulers Reinforced . | . . . . . . . Active Scanning Responses . | . . . . . . . Cargo Convoy Interrupts . | . . . . . . . Stealth | -11 -10 -10 -10 -9 -8 -8 --------- Run | Jun Mat Min Exi Min Mat Gar Distress Signals 1 | . 1 . . . . . Communications Jammed . | . . . . . . . Distress Signals . | . . . . . . . Times Spotted 51 | . 14 1 . 20 13 3 Peak Tracking Total 20 | . 3 1 . 20 7 4 Tactical Retreats 1 | . . 1 . . . . Traps | -11 -10 -10 -10 -9 -8 -8 ------- Run | Jun Mat Min Exi Min Mat Gar Traps Triggered 1 | . . . . . 1 . Indirectly . | . . . . . . . Trap Hack Attempts . | . . . . . . . Triggered . | . . . . . . . Disarmed . | . . . . . . . Reprogrammed . | . . . . . . . Reused . | . . . . . . . Traps Extracted . | . . . . . . . Installed . | . . . . . . . Triggered . | . . . . . . . Machines | -11 -10 -10 -10 -9 -8 -8 ---------- Run | Jun Mat Min Exi Min Mat Gar Machines Disabled 10 | . 7 . . . 3 . Max in Single Turn 6 | . 6 . . . 2 . Machines Repaired . | . . . . . . . Machines Sabotaged . | . . . . . . . Overloaded Fab Kills . | . . . . . . . Hacking | -11 -10 -10 -10 -9 -8 -8 --------- Run | Jun Mat Min Exi Min Mat Gar Machines Accessed 18 | . 8 1 4 . 4 1 Terminals 11 | . 7 . . . 3 1 Fabricators . | . . . . . . . Repair Stations 1 | . 1 . . . . . Recycling Units . | . . . . . . . Scanalyzers . | . . . . . . . Garrison Access 1 | . . . . . 1 . Total Hacks 49 | . 24 1 4 . 16 4 Successful 19 | . 9 1 4 . 4 1 Failed 30 | . 15 . . . 12 3 Catastrophic 7 | . 2 . . . 4 1 Database Lockouts . | . . . . . . . Manual 21 | . 10 . . . 11 . Terminals 40 | . 22 . . . 14 4 Fabricators . | . . . . . . . Repair Stations 2 | . 2 . . . . . Recycling Units . | . . . . . . . Scanalyzers . | . . . . . . . Garrison Access 2 | . . . . . 2 . Terminal Hacks 17 | . 8 1 4 . 3 1 Record 4 | . . . 4 . . . Robot Analysis 5 | . 2 . . . 3 . Prototype ID Bank 3 | . 3 . . . . . Open Door 1 | . . 1 . . . . Branch Access Points 1 | . 1 . . . . . Emergency Access Points 1 | . . . . . . 1 Unreport Threat 1 | . 1 . . . . . Dispatch Records 1 | . 1 . . . . . Fabricator Hacks . | . . . . . . . Repair Station Hacks 1 | . 1 . . . . . Refit 1 | . 1 . . . . . Recycling Unit Hacks . | . . . . . . . Scanalyzer . | . . . . . . . Garrison Access Hacks 1 | . . . . . 1 . Unlock Access 1 | . . . . . 1 . Unauthorized Hacks . | . . . . . . . Terminals . | . . . . . . . Fabricators . | . . . . . . . Repair Stations . | . . . . . . . Recycling Units . | . . . . . . . Scanalyzers . | . . . . . . . Garrison Access . | . . . . . . . Data Cores Recovered . | . . . . . . . Used . | . . . . . . . Hacking Detections 12 | . 7 . . . 4 1 Full Trace Events 6 | . 2 . . . 3 1 Feedback Events . | . . . . . . . Feedback Blocked . | . . . . . . . Robot Schematics Acquired . | . . . . . . . Robots Built . | . . . . . . . Authchips . | . . . . . . . Time . | . . . . . . . Total Robot Build Rating . | . . . . . . . Part Schematics Acquired . | . . . . . . . Parts Built . | . . . . . . . Authchips . | . . . . . . . Time . | . . . . . . . Total Part Build Rating . | . . . . . . . Parts Repaired . | . . . . . . . Time . | . . . . . . . Parts Recycled . | . . . . . . . Recycled Matter . | . . . . . . . Retrieved Matter . | . . . . . . . Retrieved Components . | . . . . . . . Parts Scanalyzed . | . . . . . . . Part Schematics Acquired . | . . . . . . . Parts Damaged . | . . . . . . . Bothacking | -11 -10 -10 -10 -9 -8 -8 ------------ Run | Jun Mat Min Exi Min Mat Gar Used RIF Installer . | . . . . . . . Robots Hacked . | . . . . . . . Non-combat . | . . . . . . . Combat . | . . . . . . . Robot Hacks Applied . | . . . . . . . Relay Couplers Released . | . . . . . . . Fabnet Peak Effective % . | . . . . . . . Robots Rewired . | . . . . . . . Allies Hacked . | . . . . . . . Hacks Repelled . | . . . . . . . Allies | -11 -10 -10 -10 -9 -8 -8 -------- Run | Jun Mat Min Exi Min Mat Gar Total Allies 3 | . . 3 . . . . Largest Group 3 | . . 3 3 . . . Highest-Rated Group 40 | . . 40 40 . . . Highest-Rated Ally 16 | . . 16 16 . . . Total Orders 4 | . . 2 . 2 . . EXPLORE 4 | . . 2 . 2 . . Ally Attacks 16 | . . 8 . 8 . . Total Damage . | . . . . . . . Kills . | . . . . . . . Allies Corrupted . | . . . . . . . Allies Melted . | . . . . . . . Intel | -11 -10 -10 -10 -9 -8 -8 ------- Run | Jun Mat Min Exi Min Mat Gar Robot Analysis Total 5 | . 2 . . . 3 . Derelict Logs Recovered 1 | . . . . 1 . . Drone Launches 16 | . . 8 . 8 . . Drone Recoveries . | . . . . . . . Exploration | -11 -10 -10 -10 -9 -8 -8 ------------- Run | Jun Mat Min Exi Min Mat Gar Turns Passed 1491 | 53 612 352 209 102 118 45 Spaces Moved 1810 | 48 563 512 373 123 117 74 Core 112 | 2 . . . . 36 74 Treads . | . . . . . . . Legs . | . . . . . . . Wheels 249 | 46 203 . . . . . Hover 1449 | . 360 512 373 123 81 . Flight . | . . . . . . . Fastest Speed 50 | 50 56 56 56 56 50 50 Average Speed 62 | 87 75 57 56 56 51 50 Slowest Speed 156 | 90 156 120 56 56 52 50 Overloaded Moves . | . . . . . . . Propulsion Burnouts . | . . . . . . . Robots Hopped . | . . . . . . . Cave-ins Triggered . | . . . . . . . Exploration Rate (%) 51 | 4 87 87 76 71 13 21 Regions Visited 6 Branch Regions 3 Pre-discovered Areas . | . . . . . . . Known Exits Taken 3 | . 1 . . 1 1 . Unknown Exits Taken 3 | 1 . 1 1 . . . Scrap Searched 2 | . . 1 . 1 . . Spaces Dug . | . . . . . . . Terrain Destroyed 117 | . 63 . . . 54 . Melee . | . . . . . . . Projectile . | . . . . . . . AOE 117 | . 63 . . . 54 . Terrain Rammed . | . . . . . . . Walls Destroyed . | . . . . . . . Machines Disabled . | . . . . . . . Actions | -11 -10 -10 -10 -9 -8 -8 --------- Run | Jun Mat Min Exi Min Mat Gar Total 2057 | 55 684 569 372 155 144 78 Wait 86 | . 18 37 . 31 . . Move 1805 | 47 562 511 372 122 117 74 Hop . | . . . . . . . Pick Up 24 | 2 18 3 . . 1 . Fast Attach 17 | 6 5 4 . 1 1 . Attach 9 | . 2 2 . . 3 2 Detach 6 | . 4 1 . . 1 . Swap 8 | . 6 1 . . 1 . Drop 31 | . 23 7 . 1 . . Fire 71 | . 46 3 . . 20 2 Melee . | . . . . . . . Ram . | . . . . . . . Kick . | . . . . . . . Crush . | . . . . . . . Escape Stasis . | . . . . . . . Rewire . | . . . . . . . Trap . | . . . . . . . Miscellaneous . | . . . . . . . Route ------- -11/Junkyard -10/Materials (discovered 4 exits: [*Mat x2] / *Min x2) -10/Mines (discovered 2 exits: [*Mat] / *Exi) -10/Exiles -9/Mines (discovered 2 exits: *Mat x2) -8/Materials -8/Garrison History --------- Turn | Location | Event 6 | -11/Junkyard | Discovered new exit (range 16) 54 | -11/Junkyard | Entered Materials 147 | -10/Materials | Discovered new exit (range 16) 354 | -10/Materials | Build established: Mutant 368 | -10/Materials | Identified exit to Mines 449 | -10/Materials | Discovered new exit (range 15) 542 | -10/Materials | Discovered new exit (range 16) 666 | -10/Materials | Entered Mines 677 | -10/Mines | Found the Drone Emporium 767 | -10/Mines | Deemed a non-threat by the Exiles lab entrance 767 | -10/Mines | Discovered new exit (range 5) 781 | -10/Mines | Found a damaged Exp. Sensor Array with a note attached 825 | -10/Mines | Lost 3 parts (2n1w) 830 | -10/Mines | Found Prototype Device 833 | -10/Mines | Identified Bomb Drone Bay 897 | -10/Mines | Discovered new exit (range 32) 947 | -10/Mines | Assisted by bots powering up and referring to "LRC-V3" 1018 | -10/Mines | Entered Exiles 1018 | -10/Exiles | Found Exiles lab abandoned 1018 | -10/Exiles | Accompanied by 3 allies 1221 | -10/Exiles | Discovered new exit (range 14) 1227 | -10/Exiles | Entered Mines 1234 | -9/Mines | Assembled infested the area 1239 | -9/Mines | Assisted by a Guerilla fighting off Assembled 1253 | -9/Mines | Met a Derelict bent on vengeance 1257 | -9/Mines | Identified exit to Materials 1271 | -9/Mines | Discovered exit to Materials (range 42) 1329 | -9/Mines | Entered Materials 1329 | -8/Materials | Evolved 4 slots: Propulsion x1, Utility x3 1419 | -8/Materials | Garrison activated, responded to threat 1433 | -8/Materials | Core integrity fell below 50% 1447 | -8/Materials | Identified exit to Garrison 1447 | -8/Materials | Entered Garrison 1459 | -8/Garrison | Lost 7 parts (1p3n3w) 1483 | -8/Garrison | Core integrity fell below 20% 1492 | -8/Garrison | Destroyed by H-55 Commando with Gauss Rifle Last Messages --------------- >>Unlock Access door unlocked. 01447_ EXIT=UNLOCKED: GARRISON LOCATION=GARRISON GOAL=ESCAPE 01467_ Penetrated by Slug. 01470_ Connecting with Garrison Terminal... >>Access(Emergency) Found 69 emergency access points. Map updated. 01470_ ALERT: Suspicious activity at Terminal G003. Transmitting hostile system tracking data. 01476_ Penetrated by Slug. 01478_ Hvy. EM Pulse Gun destroyed. 01479_ Pulse Rifle destroyed. 01482_ Penetrated by Slug. 01484_ G-47 Trooper IFF system glitched. 01485_ Penetrated by Slug. 01489_ Slug penetrates Wall. 01492_ Penetrated by Slug. Map ----- +----------------------------------------------------+ | ?????????????????????????????????????????????????? | | ?????????????????????????????????????????????????? | | ?????????????????????????????????????????????????? | | ?????????????????????????????????????????????????? | | ?????????????????????????????????????????????????? | | ?????????????????????????????????????????????????? | | ?????????????????????????????????????????????????? | | ?????+???????????????????????????????????????????? | | ?????????????????????????????????????????????????? | | ???????????????+?????????????????????????????????? | | ?????????????????????????????????????????????????? | | ?????????????????????????????????????????????????? | | ???????????????????????????+?????????????????????? | | ???????????????????????????+?????????????????????? | | ???????????????+?????????++??????????????????????? | | ?????????????????????????????????????????????????? | | ???????????????+??????###++#?????????????????????? | | ??????????????????????? #?????????????????????? | | ??????????????????????? #?????????????????????? | | ??????????????????????? ?????????????????????? | | ???????????????????????# #?????????????????????? | | ???????????????????????# #?????????????????????? | | ???????????????????????# #?????????????????????? | | ???????????????????????# h#?????????????????????? | | ???????????????????????# #?????????????????????? | | ???????????????????????# @ #?????????????????????? | | ???????????????????????# #?????????????????????? | | ???????????????????????# #?????????????????????? | | ???????????????????????# #?????????????????????? | | ???????????????????????# +?????????????????????? | | ???????????????????????# +?????????????????????? | | ???????????????????????# #??????????????????? ?? | | ????????????############ #?????????????????? #? | | ???????????#""""""""""## #?????????????????+ +? | | ???????????#"""!!!!!!"## #?????????????????? #? | | ???????????#"" ## #???????????????+?# #? | | ???????????#"! ## #????###??????????# #? | | ???????????#"! ## ###+##T##++##""""## ## | | ???????????#"! ## # | | ???????????#"! + | | ???????????#"" # | | ???????????#"""!!!!!!"########+#### ## ## # | | ????????????""""""""""#??????#????# ## ## # | | ????????????###########?????????+?" " | | ??????????????????????????????????" " | | ??????????????????????????????????" " | | ????????????????????????????????+?" " | | ??????????????????????????????????# ## ## # | | ??????????????????????????????????# ## ## # | | ??????????????????????????????????# | +----------------------------------------------------+ Best States ------------- Heat Dissipation 31 Energy Generation 14 Energy Capacity 250 Matter Stores 300 Matter Capacity 300 Sight Range 16 Terrain Scan Density 10 Evasion (%) 54 Item Schematics ----------------- None Robot Schematics ------------------ None Fabricated ------------ Nothing Alien Tech Used ----------------- None Achievements -------------- None Challenges ------------ None Game ------ Seed GuidanceThrusterCleaver Manual? 0 Play Time 00:24:14 Cumulative 75.9 hours Start 2024.01.21 @ 23:10:44 End 2024.01.21 @ 23:34:32 Sessions 1 Manual Loads 0 Difficulty Rogue Special Mode None Game No. 46 Rogue 46 Adventurer 0 Explorer 0 Win Type - Total 0 Types 0/0/0/0/0/0/0/0/0 Lore% 55 Gallery% 53 Achievement% 44 Wizard Run 0 Options --------- ASCII 0 Keyboard 1 Movement Arrows Keybinds 0 Fullscreen 1 Font 12/Proggy Map View 83x54 Tactical HUD 1 Map Filters NONE Filters NONE Steam 0 RUN: 1b42a434-3064-4a91-9f05-aa27bdc91559